bitfinex-derivatives/quotes_SOLF0:USTF0_20241024
["timestamp","ask_amount","ask_price","bid_price","bid_amount"]
[1729775756986,4.54,175.19,175.1,15.51523205]
[1729775757382,4.54,175.19,175.14,2.8571]
[1729775758386,4.54,175.19,175.13,2.8573]
[1729775759082,7.3964,175.19,175.1,15.51523205]
[1729775759685,7.3964,175.19,175.13,2.8573]
[1729775760184,2.8564,175.19,175.14,2.8572]
[1729775760384,4.6,175.2,175.06,9.3037]
[1729775760582,10.97523205,175.19,175.12,2.8574]
[1729775761288,10.97523205,175.19,175.13,2.8574]
[1729775761485,4.6,175.2,175.09,10.97523205]
[1729775761686,15.57523205,175.2,175.09,10.97523205]
[1729775761886,2.8567,175.18,175.09,10.97523205]
[1729775762788,2.857,175.16,175.11,2.8577]
[1729775762994,15.57523205,175.2,175.06,3.5868]
[1729775762995,10.97523205,175.18,175.08,4.6]
[1729775764078,2.857,175.16,175.11,2.8577]
[1729775764286,2.857,175.16,175.08,4.6]
[1729775764985,2.857,175.16,175.11,2.8577]
[1729775765387,2.8569,175.17,175.08,4.6]
[1729775765588,10.97523205,175.18,175.11,2.8576]
[1729775766093,2.857,175.16,175.11,2.8576]
[1729775767086,2.8572,175.15,175.07,4.6]
[1729775767289,4.6,175.16,175.07,4.6]
[1729775767485,10.97523205,175.13,175.06,3.5868]
[1729775767800,10.97523205,175.1,174.98,10.97523205]
[1729775767994,10.97523205,175.1,174.99,4.6]
[1729775767995,15.57523205,175.1,174.99,4.6]
[1729775768290,10.97523205,175.08,174.98,15.57523205]
[1729775768487,10.97523205,175.08,175.01,2.8592]
[1729775769100,2.8585,175.07,175.01,2.8592]
[1729775769286,10.97523205,175.08,175.01,2.8592]
[1729775769585,10.97523205,175.08,174.98,15.57523205]
[1729775769586,2.8581,175.09,175.04,2.8588]
[1729775770088,15.57523205,175.1,174.98,15.57523205]
[1729775770294,18.43313205,175.1,175.04,2.8588]
[1729775771292,18.43313205,175.1,175.05,2.8586]
[1729775771293,15.57523205,175.1,175.05,2.8586]
[1729775771600,15.57523205,175.1,174.98,15.57523205]
[1729775771787,2.8583,175.08,175.03,2.859]
[1729775772189,2.8583,175.08,174.98,15.57523205]
[1729775772396,2.8581,175.09,175.03,2.859]
[1729775772993,15.57523205,175.1,174.98,15.57523205]
[1729775773194,2.8583,175.08,175.02,2.8591]
[1729775773892,2.8583,175.08,175.03,2.859]
[1729775775901,7.458,175.1,175.05,2.8586]
[1729775776799,2.8581,175.09,175.03,2.859]
[1729775776999,4.6,175.1,175.03,2.859]
[1729775777000,15.57523205,175.1,175.03,2.859]
[1729775777497,15.57523205,175.1,175.01,2.8593]
[1729775777804,10.97523205,175.08,174.97,8.28]
[1729775778104,2.8586,175.06,175.0,2.8594]
[1729775778296,2.8586,175.06,174.97,8.28]
[1729775778494,10.97523205,175.08,174.97,8.28]
[1729775778702,2.8584,175.07,175.02,2.8592]
[1729775779404,10.97523205,175.08,174.98,10.97523205]
[1729775779602,2.8586,175.06,175.01,2.8593]
[1729775779794,4.6,175.1,174.98,10.97523205]
[1729775779795,15.57523205,175.1,174.98,10.97523205]
[1729775779997,2.8583,175.08,175.01,2.8593]
[1729775780196,2.8583,175.08,174.98,10.97523205]
[1729775780598,10.97523205,175.08,174.97,8.28]
[1729775781303,4.6,175.09,174.97,3.68]
[1729775781304,10.97523205,175.06,174.97,3.68]
[1729775781505,4.6,175.05,174.97,3.68]
[1729775782002,15.57523205,175.05,174.97,3.68]
[1729775782201,10.97523205,175.02,174.92,8.50725156]
[1729775782506,10.97523205,175.02,174.92,8.2987]
[1729775783102,4.6,175.01,174.92,8.2987]
[1729775783299,2.8601,174.97,174.92,1.2215]
[1729775783599,10.97523205,175.0,174.92,1.2215]
[1729775784900,2.8601,174.97,174.92,1.2215]
[1729775785301,10.97523205,175.0,174.92,1.2215]
[1729775785507,2.8604,174.95,174.88,2.8613]
[1729775785706,15.57523205,174.97,174.88,2.8613]
[1729775786005,10.97523205,174.95,174.86,1.2397]
[1729775786406,10.97523205,174.93,174.86,1.2397]
[1729775786707,4.6,174.92,174.82,4.29319857]
[1729775787105,10.97523205,174.9,174.82,1.43079857]
[1729775787305,10.97523205,174.9,174.81,2.8626]
[1729775788017,2.8615,174.88,174.81,2.8626]
[1729775788312,7.4615,174.88,174.81,2.8626]
[1729775789413,7.4615,174.88,174.79,15.57523205]
[1729775789599,7.4615,174.88,174.82,2.8624]
[1729775790302,2.863,174.79,174.7,2.8643]
[1729775790627,15.55523205,174.8,174.69,3.5709]
[1729775790805,4.58,174.79,174.69,3.5709]
[1729775791106,2.8632,174.78,174.71,2.8642]
[1729775793112,2.863,174.8,174.69,21.17418703]
[1729775793314,4.58,174.8,174.69,21.17418703]
[1729775793811,4.58,174.81,174.73,2.8638]
[1729775794202,2.863,174.79,174.73,2.8638]
[1729775795809,2.8623,174.83,174.77,2.8633]
[1729775796007,4.6,174.82,174.72,22.20328703]
[1729775796212,4.6,174.82,174.72,4.6]
[1729775796408,2.8633,174.77,174.72,4.6]
[1729775796608,2.8633,174.77,174.71,2.8641]
[1729775797016,2.8635,174.76,174.71,2.8641]
[1729775797320,4.6,174.78,174.7,2.8644]
[1729775797914,4.6,174.78,174.71,2.8643]
[1729775798404,2.8636,174.76,174.69,3.5709]
[1729775798609,4.6,174.78,174.72,2.864]
[1729775799010,2.8634,174.77,174.72,2.864]
[1729775799312,4.6,174.78,174.71,2.8643]
[1729775799512,2.8636,174.76,174.71,2.8643]
[1729775801314,2.8635,174.76,174.71,2.8643]
[1729775801716,4.6,174.79,174.71,2.8643]
[1729775801910,4.6,174.79,174.69,3.5709]
[1729775801911,2.8632,174.78,174.74,2.8637]
[1729775802917,4.6,174.79,174.69,21.17418703]
[1729775803110,2.8633,174.77,174.73,2.8639]
[1729775807213,4.6,174.8,174.69,21.17418703]
[1729775807417,2.8632,174.78,174.74,2.8636]
[1729775808518,4.6,174.85,174.76,17.60328703]
[1729775808722,4.6,174.85,174.77,1.2851]
[1729775809114,2.8624,174.83,174.77,1.2851]
[1729775809425,4.6,174.85,174.77,1.2851]
[1729775809620,2.8625,174.82,174.79,2.8629]
[1729775811122,4.6,174.86,174.77,1.2851]
[1729775811320,2.8624,174.83,174.77,1.2851]
[1729775811517,2.8624,174.83,174.77,3.6258]
[1729775812217,2.8624,174.83,174.8,2.8628]
[1729775812626,2.8625,174.82,174.79,2.863]
[1729775813627,2.8626,174.82,174.78,2.863]
[1729775814143,2.8626,174.82,174.77,3.6258]
[1729775814316,2.8626,174.82,174.79,2.8629]
[1729775816030,4.6,174.86,174.78,10.99904495]
[1729775816227,2.8621,174.85,174.82,2.8624]
[1729775817923,2.8621,174.85,174.81,2.8626]
[1729775818124,4.6,174.88,174.78,10.99904495]
[1729775818325,2.8625,174.82,174.77,2.4464]
[1729775818527,10.99904495,174.87,174.77,2.4464]
[1729775818832,2.8622,174.84,174.77,2.4464]
[1729775819038,10.99904495,174.87,174.77,2.4464]
[1729775819633,2.8624,174.83,174.77,2.4464]
[1729775820134,10.99904495,174.87,174.78,2.863]
[1729775820929,10.99904495,174.87,174.77,1.2851]
[1729775821139,10.99904495,174.85,174.77,2.8632]
[1729775821434,2.8631,174.79,174.74,4.56]
[1729775821635,2.8631,174.79,174.75,2.8636]
[1729775821829,2.8633,174.77,174.71,10.99904495]
[1729775822032,4.56,174.81,174.71,10.99904495]
[1729775822232,4.56,174.81,174.62,8.316947]
[1729775822233,10.99904495,174.78,174.62,8.316947]
[1729775822434,4.56,174.77,174.65,10.99904495]
[1729775822731,10.99904495,174.75,174.67,2.8649]
[1729775822929,10.99904495,174.75,174.64,2.4011]
[1729775823132,1.2815,174.76,174.62,5.724]
[1729775823133,10.99904495,174.71,174.62,5.724]
[1729775823333,4.56,174.7,174.62,5.724]
[1729775823638,5.7934,174.7,174.6,5.724]
[1729775823830,10.99904495,174.68,174.6,5.724]
[1729775824026,10.99904495,174.68,174.6,8.59]
[1729775824339,23.3990761,174.7,174.6,8.59]
[1729775825636,2.8652,174.66,174.6,8.59]
[1729775825930,4.58,174.69,174.6,5.724]
[1729775826339,2.8648,174.68,174.59,1.1859]
[1729775826532,4.58,174.69,174.59,1.1859]
[1729775826837,2.8652,174.66,174.59,1.1859]
[1729775827044,4.58,174.65,174.59,1.1859]
[1729775827740,2.8655,174.64,174.59,1.1859]
[1729775828132,4.58,174.69,174.64,2.8653]
[1729775828535,4.58,174.69,174.59,23.3715761]
[1729775828737,4.58,174.7,174.64,2.8654]
[1729775828942,2.8647,174.69,174.64,2.8654]
[1729775829138,4.58,174.71,174.59,23.3715761]
[1729775829337,2.8649,174.68,174.63,2.8655]
[1729775830247,2.865,174.67,174.63,2.8655]
[1729775830638,17.6056761,174.74,174.59,23.3715761]
[1729775830847,4.58,174.73,174.61,17.6056761]
[1729775831348,2.8644,174.71,174.67,2.8649]
[1729775833449,4.58,174.73,174.69,2.8645]
[1729775833746,2.8639,174.74,174.69,2.8645]
[1729775833747,4.58,174.74,174.69,2.8645]
[1729775834444,2.8641,174.73,174.69,2.8645]
[1729775834636,4.58,174.74,174.63,4.58]
[1729775834835,22.1856761,174.74,174.59,18.7915761]
[1729775835040,22.1856761,174.74,174.6,4.58]
[1729775835241,17.6056761,174.71,174.6,4.58]
[1729775835448,4.58,174.7,174.6,2.866]
[1729775836238,2.8649,174.67,174.6,2.866]
[1729775836443,4.58,174.66,174.59,2.8661]
[1729775836650,4.58,174.65,174.59,2.8661]
[1729775837649,4.58,174.65,174.57,1.2026]
[1729775838249,2.8654,174.64,174.6,2.8659]
[1729775840249,2.8654,174.64,174.61,2.8659]
[1729775840747,4.58,174.65,174.61,2.8659]
[1729775840949,4.58,174.65,174.57,1.2026]
[1729775841251,4.58,174.65,174.6,2.866]
[1729775841455,2.8653,174.65,174.57,1.2026]
[1729775841756,4.58,174.67,174.63,2.8655]
[1729775842357,4.58,174.67,174.58,2.5058]
[1729775842557,17.6056761,174.71,174.59,4.58]
[1729775842764,1.1858,174.72,174.59,22.1856761]
[1729775842955,4.58,174.7,174.59,22.1856761]
[1729775843657,7.4446,174.7,174.65,2.8652]
[1729775845247,12.1956674,174.72,174.68,2.8646]
[1729775845248,4.58,174.72,174.68,2.8646]
[1729775845860,1.1784,174.75,174.65,11.0098674]
[1729775846156,4.58,174.74,174.65,11.0098674]
[1729775846363,7.4437,174.75,174.7,2.8643]
[1729775846756,4.58,174.75,174.66,1.2371]
[1729775846955,2.8639,174.74,174.69,2.8645]
[1729775848662,2.8639,174.73,174.69,2.8645]
[1729775849661,2.8639,174.74,174.69,2.8645]
[1729775850761,1.2196,174.78,174.68,11.0098674]
[1729775850966,4.58,174.77,174.68,11.0098674]
[1729775851163,15.5898674,174.77,174.67,4.58]
[1729775851458,11.0098674,174.74,174.66,1.2371]
[1729775851659,4.58,174.73,174.63,15.5898674]
[1729775851861,2.8642,174.72,174.67,2.8648]
[1729775853150,2.8643,174.71,174.67,2.8648]
[1729775853351,2.8643,174.71,174.62,4.58]
[1729775853559,2.8643,174.71,174.66,2.865]
[1729775854190,2.8643,174.71,174.62,4.58]
[1729775854191,2.8645,174.7,174.65,2.8652]
[1729775854659,11.0098674,174.72,174.62,4.58]
[1729775855060,2.8644,174.71,174.66,2.8651]
[1729775857463,2.8644,174.71,174.61,11.0098674]
[1729775857464,11.0098674,174.72,174.61,11.0098674]
[1729775857680,4.58,174.73,174.6,4.58]
[1729775857681,11.0098674,174.7,174.6,4.58]
[1729775857867,11.0098674,174.66,174.58,1.2847]
[1729775858370,4.58,174.67,174.58,1.2847]
[1729775858563,7.4451,174.67,174.58,1.2847]
[1729775858764,4.58,174.67,174.58,1.2847]
[1729775858968,4.58,174.69,174.59,11.0098674]
[1729775859164,7.4446,174.69,174.65,2.8651]
[1729775859365,4.58,174.69,174.61,11.0098674]
[1729775859971,4.58,174.69,174.61,15.5898674]
[1729775860167,11.0098674,174.75,174.62,1.2465]
[1729775860372,2.8644,174.71,174.62,1.2465]
[1729775861371,2.8644,174.71,174.67,2.8648]
[1729775862277,2.8646,174.69,174.62,1.2465]
[1729775862483,2.8646,174.69,174.61,4.58]
[1729775862870,2.865,174.67,174.64,2.8654]
[1729775863682,2.865,174.67,174.58,1.2847]
[1729775863683,22.19731934,174.7,174.58,1.2847]
[1729775863883,2.8652,174.66,174.58,5.8647]
[1729775864182,4.58,174.66,174.58,1.2847]
[1729775864385,2.8654,174.65,174.61,2.8658]
[1729775864582,2.8654,174.65,174.58,1.2847]
[1729775865184,2.8654,174.65,174.61,2.8658]
[1729775866082,4.58,174.66,174.61,2.8658]
[1729775866083,2.8654,174.64,174.61,2.8658]
[1729775867880,2.8654,174.64,174.6,2.8659]
[1729775867881,2.8655,174.64,174.6,2.8659]
[1729775868484,4.58,174.66,174.6,2.8659]
[1729775868883,22.19731934,174.66,174.59,2.8661]
[1729775869180,1.2524,174.65,174.52,3.61]
[1729775869392,1.2524,174.65,174.57,2.8666]
[1729775869783,2.866,174.61,174.57,2.8666]
[1729775869989,7.446,174.61,174.57,2.8666]
[1729775870483,7.446,174.61,174.52,8.19]
[1729775870484,2.8661,174.6,174.55,2.8667]
[1729775871584,4.58,174.61,174.52,5.7624]
[1729775872183,4.58,174.61,174.57,2.8665]
[1729775872385,4.58,174.61,174.52,5.7624]
[1729775873088,7.4459,174.61,174.57,2.8664]
[1729775873289,1.2524,174.65,174.52,5.7624]
[1729775873483,4.58,174.64,174.54,17.61731934]
[1729775873687,4.58,174.64,174.55,1.2522]
[1729775874191,4.58,174.64,174.57,2.8665]
[1729775874391,7.4455,174.64,174.55,1.2522]
[1729775876290,7.4455,174.64,174.61,2.8659]
[1729775876484,2.8656,174.63,174.61,2.8659]
[1729775877087,7.4455,174.64,174.61,2.8659]
[1729775878590,18.55361934,174.68,174.61,2.8659]
[1729775878890,2.8653,174.65,174.61,2.8659]
[1729775881707,1.1792,174.69,174.56,4.5]
[1729775881895,4.5,174.69,174.57,23.35041934]
[1729775882299,4.5,174.69,174.6,11.00938185]
[1729775882492,4.5,174.69,174.61,1.2285]
[1729775882690,7.3646,174.69,174.65,2.8651]
[1729775882889,4.5,174.69,174.61,1.2285]
[1729775883090,61.86,174.72,174.63,11.00938185]
[1729775883091,4.5,174.72,174.63,11.00938185]
[1729775883290,7.3642,174.72,174.68,2.8646]
[1729775883888,2.8643,174.71,174.67,2.8649]
[1729775884198,4.5,174.72,174.62,1.1888]
[1729775884788,4.5,174.72,174.61,1.2285]
[1729775884789,11.00938185,174.7,174.61,1.2285]
[1729775886399,2.8647,174.69,174.65,2.8653]
[1729775887096,11.00938185,174.7,174.61,1.2285]
[1729775887297,4.5,174.72,174.61,1.2285]
[1729775887995,2.8644,174.71,174.61,1.2285]
[1729775888190,2.8644,174.71,174.62,11.00938185]
[1729775888391,7.3644,174.71,174.62,11.00938185]
[1729775888899,7.3644,174.71,174.67,2.8648]
[1729775889093,7.3639,174.73,174.65,11.00938185]
[1729775889296,2.8639,174.73,174.65,11.00938185]
[1729775889502,4.5,174.74,174.65,11.00938185]
[1729775889691,4.5,174.74,174.67,11.00938185]
[1729775890101,4.5,174.74,174.7,2.8643]
[1729775890297,7.3639,174.74,174.7,2.8643]
[1729775890595,2.4687,174.78,174.7,2.8643]
[1729775890794,7.3638,174.75,174.7,2.8643]
[1729775891699,2.8638,174.74,174.7,2.8643]
[1729775892301,2.4687,174.78,174.67,11.00938185]
[1729775892507,5.7802,174.78,174.7,11.00938185]
[1729775892897,4.5,174.78,174.7,11.00938185]
[1729775893401,4.5,174.78,174.72,11.00938185]
[1729775893606,4.5,174.81,174.72,11.00938185]
[1729775894007,7.3628,174.81,174.76,2.8633]
[1729775894410,4.5,174.81,174.76,2.8633]
[1729775894901,4.5,174.81,174.72,15.50938185]
[1729775895101,2.8629,174.8,174.75,2.8636]
[1729775895304,7.3629,174.8,174.75,2.8636]
[1729775896112,4.5,174.8,174.76,2.8633]
[1729775897011,4.5,174.8,174.77,2.8632]
[1729775897202,4.5,174.8,174.72,15.50938185]
[1729775897405,4.5,174.8,174.73,2.4589]
[1729775897610,171.24621312,174.83,174.73,2.4589]
[1729775898207,1.2543,174.87,174.77,11.00938185]
[1729775898408,5.7207,174.96,174.73,2.4589]
[1729775898409,4.5,174.91,174.8,11.00938185]
[1729775898607,2.8613,174.9,174.85,2.8618]
[1729775898909,4.5,174.91,174.81,4.5]
[1729775899111,7.3606,174.94,174.89,2.8612]
[1729775899506,4.5,174.94,174.89,2.8612]
[1729775899817,2.8607,174.93,174.88,2.8614]
[1729775904025,2.8613,174.9,174.85,2.8618]
[1729775904416,2.8613,174.9,174.82,6.9389]
[1729775904819,2.8613,174.9,174.84,2.8621]
[1729775905025,2.8613,174.9,174.82,6.9389]
[1729775905513,2.8617,174.87,174.78,1.2114]
[1729775905717,4.48,174.9,174.79,4.48]
[1729775906130,2.8614,174.89,174.79,4.48]
[1729775906526,2.8614,174.89,174.84,2.8621]
[1729775908429,2.8609,174.92,174.87,2.8615]
[1729775909430,4.48,174.93,174.83,4.48]
[1729775909628,2.8616,174.88,174.83,2.8623]
[1729775909833,17.58460426,174.91,174.83,2.8623]
[1729775910333,2.8616,174.88,174.83,2.8623]
[1729775911038,4.48,174.89,174.78,1.2114]
[1729775911333,2.8618,174.86,174.79,4.44]
[1729775911524,4.48,174.89,174.79,4.44]
[1729775911930,4.48,174.89,174.82,2.8623]
[1729775911931,2.8617,174.87,174.82,2.8623]
[1729775912433,2.8617,174.87,174.83,2.8623]
[1729775912635,2.8616,174.88,174.83,2.8623]
[1729775913227,4.48,174.89,174.82,2.8625]
[1729775913431,4.48,174.89,174.79,22.02460426]
[1729775913732,4.48,174.89,174.79,4.44]
[1729775914130,2.8618,174.87,174.79,4.44]
[1729775914834,2.8618,174.87,174.83,2.8621]
[1729775915935,4.44,174.92,174.79,22.02460426]
[1729775916629,2.8611,174.91,174.87,2.8616]
[1729775917530,4.44,174.92,174.83,4.44]
[1729775917739,4.44,174.92,174.82,4.44]
[1729775917926,4.44,174.92,174.81,4.44]
[1729775918345,2.8614,174.89,174.84,2.862]
[1729775919237,4.44,174.92,174.81,4.44]
[1729775919840,2.8612,174.9,174.86,2.8617]
[1729775921438,15.43602381,174.92,174.84,2.862]
[1729775921439,2.8614,174.89,174.84,2.862]
[1729775921745,2.8614,174.89,174.81,4.44]
[1729775922037,2.8614,174.89,174.84,2.862]
[1729775922433,2.8616,174.88,174.81,4.44]
[1729775923642,2.8616,174.88,174.84,2.8621]
[1729775925444,2.8619,174.86,174.82,2.8623]
[1729775925739,10.99602381,174.87,174.78,1.2114]
[1729775925939,10.99602381,174.87,174.78,5.6514]
[1729775926335,10.99602381,174.87,174.78,1.2114]
[1729775926740,10.99602381,174.85,174.78,1.2114]
[1729775926944,10.99602381,174.85,174.75,6.9073]
[1729775927331,4.44,174.84,174.75,2.4673]
[1729775927942,4.44,174.84,174.74,4.44]
[1729775928339,2.8627,174.81,174.77,2.8633]
[1729775930841,4.44,174.84,174.73,12.16322381]
[1729775931045,2.8631,174.79,174.75,2.8635]
[1729775931744,10.99602381,174.85,174.75,10.99602381]
[1729775931949,10.99602381,174.85,174.76,4.44]
[1729775931950,4.44,174.85,174.76,4.44]
[1729775932444,4.44,174.85,174.81,2.8626]
[1729775933443,7.302,174.85,174.8,2.8627]
[1729775933846,4.44,174.85,174.8,2.8627]
[1729775935345,2.8623,174.84,174.79,2.8628]
[1729775935650,4.44,174.85,174.76,4.44]
[1729775936545,7.3021,174.85,174.8,2.8627]
[1729775936852,15.43602381,174.85,174.76,4.44]
[1729775937238,2.8625,174.82,174.78,2.8631]
[1729775937647,2.8624,174.83,174.78,2.8631]
[1729775938043,2.8624,174.83,174.74,4.44]
[1729775938238,2.8627,174.81,174.76,2.8633]
[1729775938638,4.44,174.85,174.73,5.6072]
[1729775938847,2.8629,174.8,174.75,2.8635]
[1729775939350,2.8631,174.78,174.74,2.8637]
[1729775939845,10.99602381,174.8,174.73,1.1672]
[1729775940041,10.99602381,174.77,174.7,2.4583]
[1729775940241,10.99602381,174.77,174.69,4.44]
[1729775940447,2.8636,174.76,174.71,2.8641]
[1729775940748,10.99602381,174.75,174.66,1.2209]
[1729775941143,10.99602381,174.72,174.66,1.2209]
[1729775941340,15.39602381,174.72,174.66,1.2209]
[1729775941849,2.8643,174.71,174.66,4.0858]
[1729775942247,15.39602381,174.72,174.61,10.99602381]
[1729775942448,2.8645,174.7,174.65,2.8652]
[1729775942747,15.39602381,174.72,174.65,2.8652]
[1729775943149,2.8644,174.7,174.65,2.8652]
[1729775943349,2.8644,174.7,174.66,2.8651]
[1729775945253,2.8647,174.69,174.62,1.176]
[1729775945847,2.8647,174.69,174.65,2.8652]
[1729775946645,15.39602381,174.72,174.65,2.8652]
[1729775946850,2.8648,174.68,174.64,2.8654]
[1729775947054,10.99602381,174.7,174.62,1.176]
[1729775947249,4.4,174.69,174.62,1.176]
[1729775947453,2.865,174.67,174.63,2.8655]
[1729775949453,0.9316,174.78,174.62,1.176]
[1729775949454,1.2317,174.8,174.62,12.17202381]
[1729775949652,10.99602381,174.76,174.64,10.99602381]
[1729775950245,2.8641,174.73,174.68,2.8647]
[1729775950460,7.2641,174.73,174.68,2.8647]
[1729775950758,2.8641,174.73,174.68,2.8647]
[1729775951052,4.4,174.74,174.66,10.99602381]
[1729775951251,10.99602381,174.8,174.69,10.99602381]
[1729775951453,10.99602381,174.83,174.71,10.99602381]
[1729775951660,4.4,174.82,174.71,15.39602381]
[1729775951852,4.4,174.81,174.71,15.39602381]
[1729775952051,4.4,174.81,174.77,2.8632]
[1729775952755,7.2627,174.81,174.71,15.39602381]
[1729775952955,4.4,174.81,174.71,15.39602381]
[1729775953347,4.4,174.81,174.74,2.8638]
[1729775953551,10.99602381,174.83,174.71,15.39602381]
[1729775953752,4.4,174.82,174.71,15.39602381]
[1729775954059,4.4,174.82,174.78,2.8631]
[1729775954060,7.2626,174.82,174.78,2.8631]
[1729775954257,7.2626,174.82,174.71,4.4]
[1729775954459,7.2626,174.82,174.74,2.8637]
[1729775954755,4.4,174.82,174.71,5.83175072]
[1729775954962,4.4,174.82,174.71,4.4]
[1729775955263,2.8628,174.8,174.75,2.8636]
[1729775955561,2.8628,174.8,174.71,4.4]
[1729775955760,2.8628,174.8,174.75,2.8635]
[1729775956150,2.8628,174.8,174.7,5.6139]
[1729775956948,2.8628,174.8,174.75,2.8636]
[1729775957360,2.863,174.79,174.75,2.8636]
[1729775958353,4.4,174.82,174.7,5.6139]
[1729775958552,2.8631,174.78,174.7,5.6139]
[1729775958759,4.4,174.82,174.7,5.6139]
[1729775959151,4.4,174.82,174.76,2.8633]
[1729775959355,4.4,174.82,174.7,5.6139]
[1729775959558,2.8625,174.83,174.73,2.8638]
[1729775959752,4.4,174.82,174.74,1.2417]
[1729775959967,61.8,174.85,174.74,5.6417]
[1729775960160,4.4,174.84,174.75,1.2587]
[1729775960463,4.4,174.85,174.75,2.6902853]
[1729775960658,4.4,174.86,174.75,2.6902853]
[1729775961052,4.4,174.86,174.83,2.8623]
[1729775961259,4.4,174.86,174.77,1.4315853]
[1729775961454,4.4,174.86,174.78,4.4]
[1729775961657,7.2617,174.87,174.83,2.8622]
[1729775962254,2.8615,174.88,174.85,2.8619]
[1729775962461,7.2615,174.88,174.85,2.8619]
[1729775963063,4.4,174.88,174.85,2.8619]
[1729775966964,4.4,174.88,174.79,1.2472]
[1729775966965,4.4,174.88,174.86,2.8617]
[1729775967170,4.4,174.88,174.79,1.2472]
[1729775967572,4.4,174.88,174.84,2.862]
[1729775971378,2.8618,174.86,174.82,2.8623]
[1729775971569,2.8618,174.86,174.79,1.2472]
[1729775971570,4.4,174.88,174.79,1.2472]
[1729775972078,2.8617,174.87,174.83,2.8623]
[1729775972782,4.4,174.88,174.81,2.8625]
[1729775973372,2.8618,174.86,174.81,2.8625]
[1729775973577,4.4,174.88,174.81,2.8625]
[1729775974178,4.4,174.88,174.79,1.2472]
[1729775974473,2.8622,174.84,174.8,2.8627]
[1729775974674,7.2622,174.84,174.8,2.8627]
[1729775975472,4.4,174.84,174.81,2.8626]
[1729775977789,4.4,174.84,174.79,1.2472]
[1729775977984,7.2622,174.84,174.8,2.8627]
[1729775979189,2.8624,174.83,174.79,4.11]
[1729775979788,2.8624,174.83,174.8,2.8628]
[1729775979982,2.8624,174.83,174.79,1.2472]
[1729775980184,7.2622,174.84,174.79,1.2472]
[1729775980489,7.2622,174.84,174.8,2.8627]
[1729775980890,4.4,174.84,174.81,2.8626]
[1729775981095,10.99111542,174.89,174.79,1.2472]
[1729775981284,4.4,174.88,174.79,12.23831542]
[1729775981483,4.4,174.89,174.79,12.23831542]
[1729775981680,4.4,174.89,174.79,13.66985571]
[1729775982097,7.2613,174.89,174.85,2.8619]
[1729775983922,15.39111542,174.89,174.79,13.66985571]
[1729775984090,2.8617,174.87,174.83,2.8622]
[1729775984689,2.8616,174.88,174.82,2.8625]
[1729775984891,2.8616,174.88,174.79,1.2472]
[1729775985191,2.8621,174.85,174.81,2.8625]
[1729775985390,10.99111542,174.86,174.79,1.2472]
[1729775985592,4.4,174.85,174.79,1.2472]
[1729775986999,4.4,174.85,174.82,2.8624]
[1729775987202,4.4,174.85,174.79,1.2472]
[1729775987499,10.99111542,174.84,174.79,4.11]
[1729775988087,2.8624,174.83,174.79,2.8628]
[1729775989600,10.99111542,174.84,174.75,3.92938734]
[1729775989802,2.8625,174.82,174.78,2.863]
[1729775993397,2.8616,174.88,174.84,2.862]
[1729775994601,4.4,174.89,174.86,2.8618]
[1729775994801,0.9336,174.99,174.8,1.43151491]
[1729775994999,10.99111542,174.92,174.8,10.99111542]
[1729775995196,10.99111542,174.92,174.81,5.6636]